[Event "EYCC Open U16 2018"]
[Site "Riga"]
[Date "2018.08.20"]
[Round "1"]
[White "Globus, Or"]
[Black "Huynh, Laurent"]
[Result "1-0"]
[ECO "A40"]
[WhiteElo "2402"]
[BlackElo "2071"]
[Annotator "NA"]
[PlyCount "89"]
[EventDate "2018.08.20"]
[EventType "swiss"]
[EventCountry "LAT"]
[SourceTitle "playchess.com"]
[Source "ChessBase"]
[SourceQuality "1"]
[TimeControl "40/5400+30:1800+30"]

1. d4 {[%emt 0:00:00]} Nf6 {[%emt 0:00:00]} 2. c4 {[%emt 0:00:00]} e6 {[%emt 0:00:00]} 3. g3 {[%emt 0:00:00]} Bb4+ {[%emt 0:00:06]} 4. Bd2 {[%emt 0:00:00]} Be7 {[%emt 0:00:15]} 5. Bg2 {[%emt 0:00:00]} d5 {[%emt 0:02:12]} 6. Nf3 {[%emt 0:00:06]} O-O {[%emt 0:01:29]} 7. O-O {[%emt 0:00:05]} Nbd7 {[%emt 0:00:38]} 8. Qc2 {[%emt 0:02:10] E11: Bogo-Indian} Ne4 {[%emt 0:12:40]} 9. Bc1 {[%emt 0:05:17]} c6 {[%emt 0:00:35]} 10. b3 {[%emt 0:04:12] LiveBook: 10 Games} f5 {[%emt 0:02:23]} 11. Nbd2 $146 {[%emt 0:03:31]} ({Predecessor:} 11. Nfd2 Qe8 12. Nc3 Qh5 13. Ndxe4 fxe4 14. f3 Bf6 15. e3 exf3 16. Bxf3 Qe8 17. Bd2 {0-1 (25) Deac,B (2566)-Karjakin,S (2760) Medias 2017}) 11... g5 {[%emt 0:05:23]} 12. Bb2 {[%emt 0:07:10]} Qe8 {[%emt 0:05:57]} 13. Nxe4 {[%emt 0:07:48]} fxe4 {[%emt 0:00:45]} 14. Ne1 {[%emt 0:03:12]} Qh5 {[%emt 0:07:26]} 15. f3 {[%emt 0:05:56]} exf3 {[%emt 0:13:17]} 16. Rxf3 $16 {[%emt 0:09:28]} Nf6 {[%emt 0:02:13]} 17. Nd3 {[%emt 0:03:47]} Bd7 {[%emt 0:10:50]} 18. Ne5 {[%emt 0:07:43]} Rad8 {[%emt 0:01:26]} 19. Raf1 {[%emt 0:06:13]} Be8 {[%emt 0:08:59]} 20. Bc1 {[%emt 0:11:18]} Ng4 {[%emt 0:03:45]} 21. Rxf8+ {[%emt 0:04:43]} Bxf8 {[%emt 0:00:02]} 22. Nf3 {[%emt 0:01:04]} Be7 {[%emt 0:06:32]} 23. h3 {[%emt 0:02:15]} Nh6 {[%emt 0:00:02]} 24. g4 {[%emt 0:04:33]} Nxg4 {[%emt 0:00:02]} 25. hxg4 {[%emt 0:00:08]} Qxg4 {[%emt 0:00:06]} 26. Qd2 {[%emt 0:05:43]} dxc4 {[%emt 0:00:41]} 27. bxc4 {[%emt 0:00:52]} h6 {[%emt 0:00:25]} 28. Ne5 {[%emt 0:03:44]} Qxd4+ {[%emt 0:01:49]} 29. Qxd4 {[%emt 0:00:02]} Rxd4 {[%emt 0:00:01]} 30. Bh3 {[%emt 0:00:12]} Re4 {[%emt 0:02:34]} 31. Bxe6+ {[%emt 0:00:55]} Kg7 {[%emt 0:00:01]} 32. Bf5 {[%emt 0:02:28]} Bc5+ {[%emt 0:01:03]} 33. e3 {[%emt 0:00:55]} Rxe5 {[%emt 0:03:26]} 34. Bb2 {[%emt 0:00:05]} Bd6 {[%emt 0:01:08]} 35. Rd1 {[%emt 0:00:55]} Bc7 {[%emt 0:00:29]} 36. Bxe5+ {[%emt 0:00:45]} Bxe5 {[%emt 0:00:02]} 37. Rd8 {[%emt 0:00:03]} Bf7 {[%emt 0:00:25]} 38. Rd7 {[%emt 0:00:29]} Kf6 {[%emt 0:00:05]} 39. Bd3 {[%emt 0:00:21]} a5 {[%emt 0:06:54]} 40. Rxb7 {[%emt 0:00:00]} Be8 {[%emt 0:00:00]} 41. Be4 {[%emt 0:04:59]} Bd6 {[%emt 0:07:25]} 42. Bxc6 {[%emt 0:03:51]} Bxc6 {[%emt 0:00:32]} 43. Rb6 {[%emt 0:00:05]} Ke5 {[%emt 0:00:31]} 44. Rxc6 {[%emt 0:00:12]} g4 {[%emt 0:00:29]} 45. Ra6 {[%emt 0:05:12]} 1-0

[Event "EYCC Open U16 2018"]
[Site "Riga"]
[Date "2018.08.20"]
[Round "1"]
[White "Salemgareev, Tagir"]
[Black "Angst, Oliver"]
[Result "1-0"]
[ECO "D11"]
[WhiteElo "2375"]
[BlackElo "2061"]
[Annotator "NA"]
[PlyCount "64"]
[EventDate "2018.08.20"]
[EventType "swiss"]
[EventCountry "LAT"]
[SourceTitle "playchess.com"]
[Source "ChessBase"]
[SourceQuality "1"]
[TimeControl "40/5400+30:1800+30"]

1. d4 {[%emt 0:00:00]} d5 {[%emt 0:00:00]} 2. c4 {[%emt 0:00:00]} c6 {[%emt 0:00:00]} 3. Nf3 {[%emt 0:00:00]} Nf6 {[%emt 0:00:00]} 4. Qc2 {[%emt 0:00:00]} dxc4 {[%emt 0:00:49]} 5. e4 {[%emt 0:00:00] LiveBook: 155 Games} b5 {[%emt 0:01:25]} 6. b3 {[%emt 0:00:06]} cxb3 {[%emt 0:23:05]} 7. axb3 {[%emt 0:00:06]} e5 $14 {[%emt 0:01:53]} 8. dxe5 {[%emt 0:02:31]} Bb4+ {[%emt 0:02:08]} 9. Bd2 {[%emt 0:04:29]} Bxd2+ {[%emt 0:00:23]} 10. Nbxd2 {[%emt 0:00:06]} Ng4 {[%emt 0:04:12]} 11. Qc5 {[%emt 0:02:26]} Qe7 {[%emt 0:02:41]} 12. Qxe7+ {[%emt 0:03:09]} Kxe7 {[%emt 0:00:35]} 13. h3 {[%emt 0:00:06]} Nh6 {[%emt 0:01:07]} 14. b4 {[%emt 0:04:15]} Be6 {[%emt 0:02:14]} 15. Be2 {[%emt 0:01:58]} Rc8 {[%emt 0:05:04]} 16. O-O {[%emt 0:01:21]} Nd7 {[%emt 0:03:02]} 17. Rfc1 {[%emt 0:01:55]} a6 {[%emt 0:20:07]} 18. Rc3 {[%emt 0:02:53]} c5 {[%emt 0:05:07]} 19. bxc5 {[%emt 0:01:02]} b4 {[%emt 0:00:14]} 20. Rcc1 {[%emt 0:09:36]} Rxc5 {[%emt 0:04:36]} 21. Rcb1 {[%emt 0:00:52]} a5 {[%emt 0:11:19]} 22. Rxb4 {[%emt 0:02:02]} axb4 {[%emt 0:00:02]} 23. Rxa8 {[%emt 0:00:14]} Rc7 {[%emt 0:02:43]} 24. Ra5 {[%emt 0:02:35]} Rc1+ {[%emt 0:02:44]} 25. Kh2 {[%emt 0:05:16]} b3 {[%emt 0:04:42]} 26. Rb5 {[%emt 0:01:59]} Rc5 {[%emt 0:01:06]} 27. Rb7 {[%emt 0:00:39]} Rc2 {[%emt 0:00:57]} 28. Bd1 {[%emt 0:02:55]} Kd8 {[%emt 0:01:05]} 29. Kg3 {[%emt 0:02:47]} Nxe5 {[%emt 0:00:34]} 30. Nxe5 {[%emt 0:08:56]} Rxd2 {[%emt 0:00:21]} 31. Bxb3 {[%emt 0:00:05]} Bxb3 {[%emt 0:00:43]} 32. Rxb3 {[%emt 0:00:05]} f5 {[%emt 0:00:28]} 1-0

[Event "EYCC Open U16 2018"]
[Site "Riga"]
[Date "2018.08.20"]
[Round "1"]
[White "Baenziger, Fabian"]
[Black "Jazdanovs, Aleksandrs"]
[Result "1-0"]
[ECO "A05"]
[WhiteElo "2373"]
[BlackElo "2042"]
[Annotator "NA"]
[PlyCount "55"]
[EventDate "2018.08.20"]
[EventType "swiss"]
[EventCountry "LAT"]
[SourceTitle "playchess.com"]
[Source "ChessBase"]
[SourceQuality "1"]
[TimeControl "40/5400+30:1800+30"]

1. Nf3 {[%emt 0:00:00]} Nf6 {[%emt 0:00:07]} 2. g3 {[%emt 0:00:03]} b6 {[%emt 0:00:56]} 3. Bg2 {[%emt 0:00:24]} Bb7 {[%emt 0:01:02]} 4. d3 {[%emt 0:00:49]} d5 {[%emt 0:02:21]} 5. O-O {[%emt 0:00:37]} e6 {[%emt 0:04:13]} 6. Nbd2 {[%emt 0:00:53]} Be7 {[%emt 0:03:07]} 7. e4 {[%emt 0:00:53] LiveBook: 173 Games} dxe4 {[%emt 0:02:51]} 8. dxe4 {[%emt 0:02:18]} Nbd7 {[%emt 0:10:15]} ({Nur nicht} 8... Nxe4 $2 9. Ne5 $18) 9. Qe2 {[%emt 0:07:41]} e5 {[%emt 0:08:13]} 10. Rd1 {[%emt 0:11:12]} c6 {[%emt 0:04:35]} 11. Nc4 {[%emt 0:14:59]} Qc7 $16 {[%emt 0:03:57]} 12. Nh4 {[%emt 0:04:22]} g6 {[%emt 0:06:51]} 13. Bh6 {[%emt 0:08:50]} O-O-O {[%emt 0:04:48]} 14. Nf3 {[%emt 0:10:25]} b5 {[%emt 0:09:14]} 15. Ncd2 {[%emt 0:00:15]} Ng4 {[%emt 0:00:53]} 16. Be3 {[%emt 0:05:06]} Nxe3 {[%emt 0:04:45]} 17. Qxe3 {[%emt 0:00:11]} Qb6 {[%emt 0:02:22]} 18. Qxb6 {[%emt 0:08:29]} axb6 {[%emt 0:00:22]} 19. Bh3 {[%emt 0:00:03]} f6 {[%emt 0:01:26]} 20. a4 {[%emt 0:00:58]} bxa4 {[%emt 0:06:24]} 21. Nc4 {[%emt 0:00:50]} Bc5 {[%emt 0:00:08]} 22. Nfxe5 {[%emt 0:02:54]} fxe5 {[%emt 0:02:14]} 23. Nxe5 {[%emt 0:00:07]} Kc7 {[%emt 0:00:10]} 24. Rxd7+ {[%emt 0:03:41]} Rxd7 {[%emt 0:00:11]} 25. Nxd7 {[%emt 0:00:04]} Bc8 {[%emt 0:02:59]} 26. Nxc5 {[%emt 0:04:40]} Bxh3 {[%emt 0:00:07]} 27. Nxa4 {[%emt 0:00:17]} b5 {[%emt 0:00:57]} 28. Nc5 {[%emt 0:00:30]} 1-0

[Event "EYCC Open U16 2018"]
[Site "Riga"]
[Date "2018.08.20"]
[Round "1"]
[White "Postnikov, Roman"]
[Black "Gorshtein, Ido"]
[Result "0-1"]
[ECO "A40"]
[WhiteElo "2070"]
[BlackElo "2375"]
[Annotator "NA"]
[PlyCount "166"]
[EventDate "2018.08.20"]
[EventType "swiss"]
[EventCountry "LAT"]
[SourceTitle "playchess.com"]
[Source "ChessBase"]
[SourceQuality "1"]
[TimeControl "40/5400+30:1800+30"]

1. d4 {[%emt 0:00:00]} Nf6 {[%emt 0:00:00]} 2. c4 {[%emt 0:00:00]} e6 {[%emt 0:00:00]} 3. g3 {[%emt 0:00:14]} c5 {[%emt 0:00:00]} 4. d5 {[%emt 0:00:14]} exd5 {[%emt 0:00:00]} 5. cxd5 {[%emt 0:00:11]} b5 {[%emt 0:00:02]} 6. a4 {[%emt 0:05:10] A60: Benoni (Moderne Benoni-Verteidigung)} (6. Bg2 d6 7. Nf3 g6 8. O-O Bg7 9. e4 O-O 10. Re1 Re8 11. e5 dxe5 12. Nxe5 Bb7 13. Nc6 Rxe1+ 14. Qxe1 Qd7 15. Ne5 {0-1 (32) Li,C (2751)-Ivanchuk,V (2710) Huaian 2016}) 6... b4 {[%emt 0:00:07]} 7. Bg2 {[%emt 0:11:23] LiveBook: 10 Games} d6 {[%emt 0:01:24]} 8. Nh3 {[%emt 0:02:47]} g6 {[%emt 0:02:10]} 9. b3 {[%emt 0:05:14]} Bg7 {[%emt 0:01:07]} 10. Bb2 {[%emt 0:00:02]} O-O {[%emt 0:00:09]} 11. O-O {[%emt 0:00:22]} Nbd7 {[%emt 0:01:24]} 12. Nd2 $146 {[%emt 0:09:57]} ({Vorgänger:} 12. Nf4 a5 13. Nd2 Nb6 14. e4 Re8 15. Qc2 {½-½ (31) Duong,T (2354)-Cao,S (2470) Ho Chi Minh City 2013}) 12... Re8 {[%emt 0:04:12]} 13. Nc4 {[%emt 0:12:46]} Nb6 {[%emt 0:02:53]} 14. Nf4 {[%emt 0:12:52]} Nxc4 {[%emt 0:02:40]} 15. bxc4 {[%emt 0:00:03]} a5 {[%emt 0:00:20]} 16. Re1 $17 {[%emt 0:02:06]} Ra7 {[%emt 0:01:46]} 17. e4 {[%emt 0:01:32]} Nd7 {[%emt 0:01:33]} 18. Bxg7 {[%emt 0:01:45]} Kxg7 {[%emt 0:00:02]} 19. Nd3 {[%emt 0:00:10]} Qf6 {[%emt 0:01:18]} 20. Qb3 {[%emt 0:01:40]} Ba6 {[%emt 0:03:05]} 21. Rac1 {[%emt 0:02:47]} Ne5 {[%emt 0:13:16]} 22. Nxe5 {[%emt 0:00:05]} Qxe5 {[%emt 0:00:15]} 23. f4 {[%emt 0:00:51]} Qd4+ {[%emt 0:01:33]} 24. Kh1 {[%emt 0:00:14]} Qf6 {[%emt 0:02:55]} 25. Re3 {[%emt 0:03:50]} Rae7 {[%emt 0:04:25]} 26. Qd3 {[%emt 0:01:33]} Qb2 {[%emt 0:08:42]} 27. Qd1 {[%emt 0:01:56]} Qf6 {[%emt 0:11:18]} 28. Qe2 {[%emt 0:03:21]} Kf8 {[%emt 0:08:49]} 29. Rd1 {[%emt 0:01:42]} Bb7 {[%emt 0:14:47]} 30. Kg1 {[%emt 0:02:07]} Ba6 {[%emt 0:01:44]} 31. e5 {[%emt 0:01:04]} Qg7 {[%emt 0:00:17]} 32. Bh3 {[%emt 0:02:31]} f5 {[%emt 0:03:37]} 33. Bg2 {[%emt 0:00:39]} Bc8 {[%emt 0:01:33]} 34. e6 {[%emt 0:01:42]} Qf6 {[%emt 0:01:34]} 35. Qd3 {[%emt 0:02:05]} b3 {[%emt 0:01:52]} 36. Qxb3 {[%emt 0:02:03]} Rb7 {[%emt 0:00:08]} 37. Qc3 {[%emt 0:03:15]} Qxc3 {[%emt 0:00:06]} 38. Rxc3 {[%emt 0:00:04]} Rb4 {[%emt 0:00:28]} 39. Ra1 {[%emt 0:02:04]} Ba6 {[%emt 0:00:02]} 40. Bf1 {[%emt 0:00:00]} Ke7 {[%emt 0:00:00]} 41. h3 {[%emt 0:04:38]} h5 {[%emt 0:01:25]} 42. Kf2 {[%emt 0:02:19]} Reb8 {[%emt 0:00:06]} 43. g4 {[%emt 0:02:25]} Rb2+ {[%emt 0:04:30]} 44. Kg3 {[%emt 0:02:23]} Kf6 {[%emt 0:00:15]} 45. Re1 {[%emt 0:02:32]} Ke7 {[%emt 0:00:36]} 46. Kh4 {[%emt 0:02:31]} hxg4 {[%emt 0:04:18]} 47. hxg4 {[%emt 0:01:44]} Rh8+ {[%emt 0:01:53]} 48. Kg5 {[%emt 0:00:27]} fxg4 {[%emt 0:01:23]} 49. Kxg4 {[%emt 0:04:19]} Rh1 {[%emt 0:08:29]} 50. Rh3 {[%emt 0:01:17]} Rxh3 {[%emt 0:00:03]} 51. Kxh3 {[%emt 0:01:46]} Rb4 {[%emt 0:00:45]} 52. Kg4 {[%emt 0:00:54]} Rxa4 {[%emt 0:02:01]} 53. Kg5 {[%emt 0:01:35]} Ra3 {[%emt 0:01:02]} 54. Kxg6 {[%emt 0:00:26]} Rg3+ {[%emt 0:00:02]} 55. Kh5 {[%emt 0:00:41]} Rg1 {[%emt 0:04:02]} 56. Rb1 {[%emt 0:06:00]} a4 {[%emt 0:04:46]} 57. Rb6 {[%emt 0:03:29]} Bc8 {[%emt 0:01:01]} 58. Bd3 {[%emt 0:02:09]} Rd1 {[%emt 0:03:12]} 59. Bc2 {[%emt 0:02:22]} a3 {[%emt 0:00:13]} 60. Rb1 {[%emt 0:00:53]} Rd2 {[%emt 0:01:23]} 61. Ba4 {[%emt 0:01:31]} Ba6 {[%emt 0:03:33]} 62. Rb6 {[%emt 0:01:18]} Bc8 {[%emt 0:00:13]} 63. Rc6 {[%emt 0:00:45]} Bxe6 {[%emt 0:02:08]} 64. Ra6 {[%emt 0:00:29]} Rh2+ {[%emt 0:00:45]} 65. Kg5 {[%emt 0:00:07]} Rg2+ {[%emt 0:00:02]} 66. Kh5 {[%emt 0:00:13]} Bf5 {[%emt 0:00:34]} 67. Bb3 {[%emt 0:01:01]} Rg3 {[%emt 0:00:27]} 68. Bd1 {[%emt 0:00:35]} Bb1 {[%emt 0:02:15]} 69. Kh4 {[%emt 0:00:18]} Rg1 {[%emt 0:00:11]} 70. Bb3 {[%emt 0:00:44]} Bf5 {[%emt 0:00:17]} 71. Ba2 {[%emt 0:00:26]} Rg4+ {[%emt 0:00:22]} 72. Kh3 {[%emt 0:00:44]} Rxf4+ {[%emt 0:00:57]} 73. Kg3 {[%emt 0:00:08]} Rd4 {[%emt 0:00:10]} 74. Rxa3 {[%emt 0:00:08]} Bd3 {[%emt 0:00:26]} 75. Rc3 {[%emt 0:00:20]} Kf6 {[%emt 0:00:23]} 76. Kf2 {[%emt 0:00:28]} Ke5 {[%emt 0:00:08]} 77. Ke3 {[%emt 0:00:07]} Bf5 {[%emt 0:00:07]} 78. Bb3 {[%emt 0:00:52]} Re4+ {[%emt 0:00:34]} 79. Kd2 {[%emt 0:00:12]} Rh4 {[%emt 0:00:11]} 80. Rg3 {[%emt 0:01:42]} Kd4 {[%emt 0:00:51]} 81. Kc1 {[%emt 0:00:31]} Rh3 {[%emt 0:00:44]} 82. Rxh3 {[%emt 0:00:28]} Bxh3 {[%emt 0:00:01]} 83. Kd2 {[%emt 0:00:39]} Bf1 {[%emt 0:00:02]} 0-1

[Event "EYCC Open U16 2018"]
[Site "Riga"]
[Date "2018.08.20"]
[Round "1"]
[White "Lomandong, Marc-Antoine"]
[Black "Shubin, Kirill"]
[Result "1/2-1/2"]
[ECO "A40"]
[WhiteElo "2045"]
[BlackElo "2374"]
[Annotator "NA"]
[PlyCount "41"]
[EventDate "2018.08.20"]
[EventType "swiss"]
[EventCountry "LAT"]
[SourceTitle "playchess.com"]
[Source "ChessBase"]
[SourceQuality "1"]
[TimeControl "40/5400+30:1800+30"]

1. d4 {[%emt 0:00:00]} e6 {[%emt 0:00:00]} 2. Nf3 {[%emt 0:00:00]} Nf6 {[%emt 0:00:00]} 3. b3 {[%emt 0:00:28]} b6 {[%emt 0:03:11]} 4. Bb2 {[%emt 0:02:05]} Bb7 {[%emt 0:00:12]} 5. Nbd2 {[%emt 0:00:09]} c5 {[%emt 0:06:45]} 6. e3 {[%emt 0:00:10]} Nc6 {[%emt 0:01:58] LiveBook: 6 Partien} 7. a3 {[%emt 0:03:42]} d5 {[%emt 0:08:43]} 8. Bd3 {[%emt 0:01:28]} Bd6 {[%emt 0:01:00]} 9. Ne5 {[%emt 0:00:46]} a6 {[%emt 0:05:08]} 10. f4 {[%emt 0:11:42]} b5 {[%emt 0:04:02]} 11. c3 {[%emt 0:11:44]} Ne7 $11 {[%emt 0:09:11]} 12. O-O {[%emt 0:05:08]} Ne4 {[%emt 0:06:44]} 13. c4 {[%emt 0:06:29]} Nf5 {[%emt 0:11:03]} 14. Qe2 {[%emt 0:09:20]} cxd4 {[%emt 0:12:32]} 15. cxd5 {[%emt 0:09:08]} Nxd2 {[%emt 0:02:49]} 16. Bxf5 {[%emt 0:01:17]} Nxf1 {[%emt 0:01:21]} 17. Nxf7 {[%emt 0:05:38]} Kxf7 {[%emt 0:01:10]} 18. Bxe6+ {[%emt 0:11:35]} Kf8 {[%emt 0:00:48]} 19. Bxd4 {[%emt 0:02:16]} Bc8 {[%emt 0:08:08]} 20. Bxg7+ {[%emt 0:04:19]} Kxg7 {[%emt 0:01:08]} 21. Qg4+ {[%emt 0:00:10]} 1/2-1/2

[Event "EYCC Open U16 2018"]
[Site "Riga"]
[Date "2018.08.21"]
[Round "2"]
[White "Szpar, Milosz"]
[Black "Kizatbay, Abyl"]
[Result "1-0"]
[ECO "B94"]
[WhiteElo "2365"]
[BlackElo "2205"]
[Annotator "NA RC"]
[PlyCount "64"]
[EventDate "2018.08.20"]
[EventType "swiss"]
[EventCountry "LAT"]
[SourceTitle "playchess.com"]
[Source "ChessBase"]
[SourceQuality "1"]
[TimeControl "40/5400+30:1800+30"]

1. e4 {[%emt 0:00:00]} c5 {[%emt 0:00:00]} 2. Nf3 {[%emt 0:00:00]} d6 {[%emt 0:00:10]} 3. d4 {[%emt 0:00:12]} cxd4 {[%emt 0:00:10]} 4. Nxd4 {[%emt 0:00:17]} Nf6 {[%emt 0:00:17]} 5. Nc3 {[%emt 0:00:17]} a6 {[%emt 0:00:20]} 6. Bg5 {[%emt 0:00:35]} Nbd7 {[%emt 0:00:20]} 7. Qe2 {[%emt 0:00:40]} h6 {[%emt 0:01:21]} 8. Bh4 {[%emt 0:00:51]} g6 {[%emt 0:00:29]} 9. f4 {[%emt 0:00:24]} e5 {[%emt 0:00:12]} 10. fxe5 {[%emt 0:00:51]} dxe5 {[%emt 0:00:15]} 11. O-O-O {[%emt 0:01:58]} Qc7 {[%emt 0:01:19]} 12. Nb3 {[%emt 0:00:36]} b5 {[%emt 0:00:28]} 13. Qf3 {[%emt 0:03:46]} Bg7 $1 {[%emt 0:01:09]} 14. a3 {[%emt 0:03:05]} O-O {[%emt 0:04:20]} 15. Be2 {[%emt 0:01:18]} Bb7 {[%emt 0:04:22]} 16. Rd2 $11 {[%emt 0:06:53]} Bc6 {[%emt 0:15:14]} 17. Rhd1 {[%emt 0:07:29]} Rab8 {[%emt 0:03:21]} 18. Nd5 {[%emt 0:16:42]} Nxd5 {[%emt 0:16:40]} 19. exd5 {[%emt 0:00:07]} Ba8 {[%emt 0:00:23]} 20. Be7 {[%emt 0:07:58]} Rfe8 {[%emt 0:10:49]} 21. Qh3 {[%emt 0:02:18]} Rbc8 {[%emt 0:10:37]} 22. d6 {[%emt 0:03:57]} Qa7 {[%emt 0:00:44]} 23. Rf1 {[%emt 0:01:44]} e4 {[%emt 0:05:50]} 24. c3 {[%emt 0:13:50]} Rb8 {[%emt 0:10:20]} 25. g4 {[%emt 0:09:20]} a5 {[%emt 0:02:18]} 26. Nd4 {[%emt 0:01:01]} b4 {[%emt 0:00:57]} 27. Rxf7 {[%emt 0:02:43]} bxc3 {[%emt 0:02:11]} 28. Rxg7+ {[%emt 0:02:46]} Kxg7 {[%emt 0:00:03]} 29. Ne6+ {[%emt 0:01:27]} Kh7 {[%emt 0:04:00]} 30. Ng5+ {[%emt 0:01:34]} Kg7 {[%emt 0:01:29]} 31. Qxc3+ {[%emt 0:00:11]} Kg8 {[%emt 0:01:32]} 32. Bc4+ {[%emt 0:00:07]} Bd5 {[%emt 0:00:18]} 1-0

[Event "EYCC Open U16 2018"]
[Site "Riga"]
[Date "2018.08.22"]
[Round "3"]
[White "Salemgareev, Tagir"]
[Black "Chukavin, Kirill"]
[Result "1-0"]
[ECO "E51"]
[WhiteElo "2375"]
[BlackElo "2291"]
[Annotator "NA"]
[PlyCount "99"]
[EventDate "2018.08.20"]
[EventType "swiss"]
[EventCountry "LAT"]
[SourceTitle "playchess.com"]
[Source "ChessBase"]
[SourceQuality "1"]
[TimeControl "40/5400+30:1800+30"]

1. d4 {[%emt 0:00:00]} Nf6 {[%emt 0:00:00]} 2. c4 {[%emt 0:00:00]} e6 {[%emt 0:00:00]} 3. Nc3 {[%emt 0:00:00]} Bb4 {[%emt 0:00:13]} 4. e3 {[%emt 0:00:00]} O-O {[%emt 0:00:25]} 5. Nf3 {[%emt 0:00:00]} d5 {[%emt 0:04:30]} 6. Bd2 {[%emt 0:00:24]} c5 {[%emt 0:04:15]} 7. a3 {[%emt 0:02:30]} Bxc3 {[%emt 0:04:18]} 8. Bxc3 {[%emt 0:00:06]} Ne4 {[%emt 0:00:35]} 9. Rc1 {[%emt 0:00:13]} Nxc3 {[%emt 0:03:08]} 10. Rxc3 {[%emt 0:00:09] LiveBook: 18 Games} cxd4 {[%emt 0:00:39]} 11. Nxd4 {[%emt 0:00:13]} b6 {[%emt 0:06:40] E51: Nimzo-Indian: Rubinstein: 4...0-0 5 Nf3 d5} (11... dxc4 12. Bxc4 Bd7 13. O-O Nc6 14. Nf3 Qe7 15. Qc2 Rfd8 16. Bd3 h6 17. Rc1 Qf6 18. Bh7+ Kh8 19. Be4 {1-0 (47) Rakhmanov,A (2627)-Goganov,A (2576) Ankara 2018}) 12. cxd5 {[%emt 0:01:34]} Qxd5 {[%emt 0:01:51]} 13. Be2 {[%emt 0:04:27]} Bb7 {[%emt 0:05:07]} 14. Bf3 {[%emt 0:00:13]} Qd7 {[%emt 0:00:27]} 15. O-O {[%emt 0:01:40]} Na6 $146 {[%emt 0:08:36]} ({Predecessor:} 15... Rc8 16. Qc2 Rxc3 17. Qxc3 Bxf3 18. Nxf3 Nc6 19. Rc1 {½-½ (56) Hajnrych,J (1943)-Zochowski,J Lubawka 2007}) 16. Bc6 {[%emt 0:07:15]} Bxc6 {[%emt 0:11:17]} 17. Nxc6 {[%emt 0:00:35]} Qb7 {[%emt 0:01:08]} 18. b4 {[%emt 0:03:16]} Nc5 {[%emt 0:11:03]} 19. Na5 {[%emt 0:31:03]} Qa6 {[%emt 0:01:20]} 20. Qc2 {[%emt 0:00:31]} Nd7 {[%emt 0:09:13]} 21. Nc6 {[%emt 0:00:37]} Rfe8 {[%emt 0:03:45]} 22. Rd1 {[%emt 0:02:06]} Nf6 {[%emt 0:01:02]} 23. e4 {[%emt 0:00:33]} Qb7 $16 {[%emt 0:01:47]} 24. f3 {[%emt 0:11:23]} h5 {[%emt 0:05:58]} 25. Qc1 {[%emt 0:12:35]} g6 {[%emt 0:04:03]} 26. Qf4 {[%emt 0:03:23]} Nh7 {[%emt 0:03:30]} 27. h4 {[%emt 0:03:35]} a6 {[%emt 0:01:02]} 28. Rdc1 {[%emt 0:02:08]} f6 {[%emt 0:04:27]} 29. e5 {[%emt 0:03:36]} Qg7 {[%emt 0:01:34]} 30. Qd4 {[%emt 0:02:10]} b5 {[%emt 0:01:27]} 31. exf6 {[%emt 0:01:41]} Nxf6 {[%emt 0:00:20]} 32. Rc5 {[%emt 0:01:33]} Nd7 {[%emt 0:01:14]} 33. Qxg7+ {[%emt 0:03:05]} Kxg7 {[%emt 0:00:02]} 34. R5c2 {[%emt 0:00:10]} Nb6 {[%emt 0:01:17]} 35. Na5 {[%emt 0:01:27]} Rac8 {[%emt 0:00:31]} 36. Rc6 {[%emt 0:00:13]} Kf6 {[%emt 0:00:38]} 37. Kf2 {[%emt 0:01:16]} Red8 {[%emt 0:00:29]} 38. R1c5 {[%emt 0:01:12]} Rb8 {[%emt 0:00:36]} 39. Rc3 {[%emt 0:01:55]} Rd2+ {[%emt 0:00:23]} 40. Kg3 {[%emt 0:00:00]} Nd5 {[%emt 0:00:00]} 41. Rc1 {[%emt 0:06:44]} g5 {[%emt 0:06:05]} 42. hxg5+ {[%emt 0:02:30]} Kxg5 {[%emt 0:01:04]} 43. Nb3 {[%emt 0:00:14]} Rb2 {[%emt 0:11:20]} 44. Nd4 {[%emt 0:03:24]} Kf6 {[%emt 0:10:24]} 45. Rxe6+ {[%emt 0:01:55]} Kf7 {[%emt 0:00:01]} 46. Re2 {[%emt 0:00:11]} Rg8+ {[%emt 0:00:26]} 47. Kh2 {[%emt 0:01:24]} Rxe2 {[%emt 0:00:18]} 48. Nxe2 {[%emt 0:00:05]} Re8 {[%emt 0:01:15]} 49. Rc5 {[%emt 0:04:42]} Nxb4 {[%emt 0:01:46]} 50. Nc1 {[%emt 0:00:49]} 1-0

[Event "EYCC Open U16 2018"]
[Site "Riga"]
[Date "2018.08.22"]
[Round "3"]
[White "Baenziger, Fabian"]
[Black "Sorensen, Hampus"]
[Result "1/2-1/2"]
[ECO "D10"]
[WhiteElo "2373"]
[BlackElo "2267"]
[Annotator "NA"]
[PlyCount "55"]
[EventDate "2018.08.20"]
[EventType "swiss"]
[EventCountry "LAT"]
[SourceTitle "playchess.com"]
[Source "ChessBase"]
[SourceQuality "1"]
[TimeControl "40/5400+30:1800+30"]

1. d4 {[%emt 0:00:00]} d5 {[%emt 0:00:00]} 2. c4 {[%emt 0:00:05]} c6 {[%emt 0:01:00]} 3. cxd5 {[%emt 0:01:11]} cxd5 {[%emt 0:00:52]} 4. Nc3 {[%emt 0:00:08]} Nf6 {[%emt 0:01:33]} 5. Bf4 {[%emt 0:00:30]} Nc6 {[%emt 0:01:16]} 6. e3 {[%emt 0:00:16]} a6 {[%emt 0:00:35]} 7. Be2 {[%emt 0:01:25]} Bf5 {[%emt 0:04:00]} 8. Nf3 {[%emt 0:01:28] LiveBook: 75 Games} e6 {[%emt 0:03:38]} 9. Qb3 {[%emt 0:01:05] D13: Slav Defence: Exchange variation without ...Bf5} (9. Ne5 Nxe5 10. Bxe5 Nd7 11. Bg3 Be7 12. O-O O-O 13. Rc1 Rc8 14. Bd3 Bxd3 15. Qxd3 Qa5 16. Rc2 Rc6 17. Rfc1 Rfc8 18. f3 Bb4 19. e4 Bxc3 20. bxc3 Nb6 21. h4 {0-1 (42) Vallejo Pons,F (2711)-Andreikin,D (2737) Tallinn 2016}) 9... Bd6 {[%emt 0:02:37]} 10. Bxd6 {[%emt 0:00:58]} Qxd6 {[%emt 0:00:17]} 11. Qxb7 {[%emt 0:00:07]} O-O {[%emt 0:01:10]} 12. Qb3 {[%emt 0:00:05]} Rfb8 {[%emt 0:01:33]} 13. Qa3 {[%emt 0:00:19]} Qxa3 {[%emt 0:00:37]} 14. bxa3 {[%emt 0:00:06]} Na7 {[%emt 0:04:52]} 15. a4 {[%emt 0:00:46]} Rc8 $146 {[%emt 0:09:27]} (15... Rb2 $14) ({Predecessor:} 15... Ne4 16. Nxe4 Bxe4 {½-½ (51) Gledura,B (2602)-Ali Marandi,C (2479) Minsk 2017}) 16. Kd2 {[%emt 0:14:36]} Nc6 {[%emt 0:05:37]} 17. Rhc1 {[%emt 0:12:33]} h6 {[%emt 0:05:15]} 18. h3 $16 {[%emt 0:07:53]} Kf8 {[%emt 0:07:36]} 19. Bd3 {[%emt 0:13:06]} Bxd3 {[%emt 0:02:27]} 20. Kxd3 {[%emt 0:00:46]} Rab8 {[%emt 0:05:03]} 21. Rab1 {[%emt 0:05:37]} Rxb1 {[%emt 0:01:32]} 22. Rxb1 {[%emt 0:00:21]} Rb8 {[%emt 0:00:28]} 23. Rb3 {[%emt 0:10:06]} Nd7 {[%emt 0:04:57]} 24. Nd2 {[%emt 0:01:08]} Nb4+ {[%emt 0:06:16]} 25. Ke2 {[%emt 0:00:07]} Nc6 {[%emt 0:00:09]} 26. Kd3 {[%emt 0:00:23]} Nb4+ {[%emt 0:00:06]} 27. Ke2 {[%emt 0:00:04]} Nc6 {[%emt 0:00:06]} 28. Kd3 1/2-1/2